Cogmind - Beta 14 @@@ ROGUE MODE // 2024.09.16 @ 08:02:53 Player: star Result: Destroyed by D-53 Grenadier with Mini Grenade Launcher Performance ------------- Evolutions (0) 0 Regions Visited (2) 400 Robots Destroyed (23) 115 Value Destroyed (557) 557 Prototype IDs (1) 20 Alien Tech Used (0) 0 Bonus (0) 0 TOTAL SCORE: 1092 Bonus ------- None Cogmind --------- Core Integrity 0/250 Matter 177/300 Energy 280/280 System Corruption 0% Temperature Cool (16) Movement Walking (190) Ox1 Location -10/Mines Parts ------- > --- POWER (1) -------- Heavy Ion Engine > --- PROPULSION (2) --- Aluminum Leg Aluminum Leg > --- UTILITY (2) ------ Medium Storage Unit > --- WEAPON (2) ------- Autogun Autogun > --- INVENTORY (10) --- Heavy Ion Engine VTOL Module VTOL Module VTOL Module VTOL Module Medium Matter Pod (100) Autogun Light Cannon Rocket Launcher Peak State ------------ > --- POWER ------------ Heavy Ion Engine > --- PROPULSION ------- Aluminum Leg Aluminum Leg > --- UTILITY ---------- Medium Storage Unit Tractor Beam > --- WEAPON ----------- Autogun Light Cannon > --- INVENTORY -------- Heavy Ion Engine VTOL Module VTOL Module VTOL Module VTOL Module Medium Matter Pod Autogun Autogun Autogun Rocket Launcher [Rating: 12] Favorites ----------- Power Heavy Ion Engine Engine Heavy Ion Engine Propulsion Aluminum Leg Treads Light Treads Leg Aluminum Leg Utility Medium Storage Unit Device Tractor Beam Storage Medium Storage Unit Protection Light Armor Plating Weapon Assault Rifle Energy Gun Small Laser Ballistic Gun Assault Rifle Ballistic Cannon Light Cannon Launcher Rocket Launcher Build | -11 -10 -10 ------- Run | Yrd Mat Min Slots Evolved . | . . . Power . | . . . Propulsion . | . . . Utility . | . . . Weapon . | . . . Parts Attached 31 | 7 21 3 Power 2 | 1 1 . Engine 2 | 1 1 . Core . | . . . Reactor . | . . . Propulsion 7 | 2 5 . Treads 2 | 2 . . Leg 5 | . 5 . Wheel . | . . . Hover . | . . . Flight . | . . . Utility 6 | 1 5 . Device 2 | . 2 . Storage 2 | 1 1 . Processor . | . . . Hackware . | . . . Protection 2 | . 2 . Artifact . | . . . Weapon 16 | 3 10 3 Energy Gun 2 | 2 . . Energy Cannon . | . . . Ballistic Gun 10 | 1 7 2 Ballistic Cannon 1 | . 1 . Launcher 3 | . 2 1 Special Weapon . | . . . Impact Weapon . | . . . Slashing Weapon . | . . . Piercing Weapon . | . . . Special Melee Weapon . | . . . Unidentified Prototypes 1 | . 1 . Parts Lost 4 | . 2 2 Power . | . . . Propulsion 1 | . 1 . Utility 2 | . 1 1 Weapon 1 | . . 1 Highest Loss Streak 1 | . 1 1 To Critical Strikes . | . . . Average Slot Usage (%) 93 | . 96 85 Engine 14 | . 14 14 Treads 8 | . 12 . Leg 19 | . 15 28 Device 2 | . 3 . Storage 15 | . 15 14 Protection 4 | . 5 . Energy Gun 1 | . 2 . Ballistic Gun 20 | . 17 26 Ballistic Cannon 5 | . 7 . Peak Build Rating 12 | 6 12 12 Average Rating 9 | 4 9 11 On Entrance 6 | . 6 12 Naked Turns . | . . . Heaviest Build 28 | 12 28 25 Greatest Support 40 | 40 40 20 Greatest Overweight (x) 1 | . 1 1 Average Overweight (x) . | . . 1 Largest Inventory Capacity 10 | 8 10 10 Average Capacity 9 | 6 8 10 Most Carried 10 | . 10 10 Average Carried 7 | . 6 9 Final Capacity 10 | 8 10 10 Final Carried 10 | . 10 9 Class Distribution -------------------- 100% | Mutant Dominant Class ---------------- Mutant | -10/Materials Mutant | -10/Mines Resources | -11 -10 -10 ----------- Run | Yrd Mat Min Matter Collected 1060 | 244 767 49 Remotely 12 | . 4 8 Salvage Created 758 | . 696 62 Parts 49 | . 45 4 Haulers Intercepted 2 | . 2 . Recyclers Shooed 4 | . 4 . Parts Field Recycled . | . . . Retrieved Matter . | . . . Parts Self-Destructed . | . . . Prevented . | . . . Kills | -11 -10 -10 ------- Run | Yrd Mat Min Combat Hostiles Destroyed 23 | . 15 8 Guns 14 | . 9 5 Cannons 3 | . 3 . AOE 6 | . 3 3 Classes Destroyed 6 | . 5 1 Tunneler 1 | . 1 . Hauler 2 | . 2 . Recycler 2 | . 2 . Swarmer 6 | . 3 3 Grunt 12 | . 12 . Assembled 5 | . . 5 Best Kill Streak 5 | . 3 5 Combat Bots Only 5 | . 3 5 Max Kills in Single Turn 3 | . 3 2 Gunslinging . | . . . Exploded 3 | . 3 2 Melee . | . . . Uniques/NPCs Destroyed . | . . . Combat | -11 -10 -10 -------- Run | Yrd Mat Min Hostile Shots Fired 109 | . 80 29 Missed 30 | . 25 5 Damage Taken 1216 | . 675 541 Core 258 | . 103 155 Absorbed by Shields . | . . . Core Remaining (%) 100 | 100 . . Volleys Fired 82 | . 68 14 Largest 2 | . 2 2 Hottest 60 | . 60 56 Shots Fired 164 | . 136 28 Gun 137 | . 111 26 Cannon 23 | . 23 . Launcher 4 | . 2 2 Special . | . . . Kinetic 144 | . 118 26 Thermal 16 | . 16 . Explosive 4 | . 2 2 Electromagnetic . | . . . Robot Hit Streak 9 | . 9 7 Robot Miss Streak 3 | . 3 2 Penetration Max . | . . . Secondary Targets 1 | . . 1 Max Gunslinging Chain 1 | . . 1 Shots Hit Robots 109 | . 89 20 Core Hits 47 | . 34 13 Critical Kills . | . . . Critical Parts Destroyed . | . . . Critical Strikes . | . . . Melee Attacks . | . . . Impact . | . . . Slashing . | . . . Piercing . | . . . Sneak Attacks . | . . . Combat Hostiles . | . . . Follow-up Attacks . | . . . Damage Inflicted 1895 | . 1316 579 Guns 1247 | . 931 316 Cannons 249 | . 249 . Explosions 394 | . 131 263 Melee . | . . . Ramming 5 | . 5 . Kinetic 1352 | . 1036 316 Thermal 144 | . 144 . Explosive 394 | . 131 263 Electromagnetic . | . . . Impact . | . . . Slashing . | . . . Piercing . | . . . Highest Corruption . | . . . Average Corruption . | . . . Corruption Purged . | . . . Corruption Blocked . | . . . Overload Shots . | . . . Overflow Damage 3 | . . 3 Projectiles . | . . . Explosions 3 | . . 3 Melee . | . . . Knockbacks 4 | . 4 . Impact . | . . . Kinetic 4 | . 4 . Secondary . | . . . Self-Inflicted Damage 71 | . . 71 Shots 2 | . . 2 Rammed 1 | . 1 . Targets Rammed 1 | . 1 . Kicked . | . . . Crushed . | . . . Highest Temperature 84 | . 84 18 Average Temperature 32 | . 38 9 Received Heat Transfer 366 | . 366 . Siege Activations . | . . . Robots Corrupted . | . . . Combat Hostiles . | . . . Parts Fried . | . . . Impact Corruptions . | . . . Robots Melted . | . . . Combat Hostiles . | . . . Parts Melted . | . . . Heat Transferred 325 | . 325 . Parts Sabotaged . | . . . Parts Stolen . | . . . Parts Stripped . | . . . Power Chain Reactions . | . . . Alert | -11 -10 -10 ------- Run | Yrd Mat Min Peak Influence 308 | . 308 141 Initial 63 | . . 63 Average 132 | . 169 66 Maximum Alert Level 1 | . 1 . Low Security (%) 73 | 100 60 100 Level 1 26 | . 39 . Level 2 . | . . . Level 3 . | . . . Level 4 . | . . . Level 5 . | . . . High Security . | . . . Max Security . | . . . Squads Dispatched 3 | . 3 . Investigation 2 | . 2 . Extermination . | . . . Reinforcement 1 | . 1 . Assault . | . . . Garrison . | . . . Intercept . | . . . Searches Triggered . | . . . Construction Impeded . | . . . Haulers Reinforced . | . . . Active Scanning Responses . | . . . Cargo Convoy Interrupts . | . . . Stealth | -11 -10 -10 --------- Run | Yrd Mat Min Distress Signals . | . . . Communications Jammed . | . . . Distress Signals . | . . . Times Spotted 33 | . 23 10 Peak Tracking Total 5 | . 4 5 Tactical Retreats 1 | . . 1 Traps | -11 -10 -10 ------- Run | Yrd Mat Min Traps Triggered 2 | . 2 . Indirectly . | . . . Trap Hack Attempts . | . . . Triggered . | . . . Disarmed . | . . . Reprogrammed . | . . . Reused . | . . . Traps Extracted . | . . . Installed . | . . . Triggered . | . . . Machines | -11 -10 -10 ---------- Run | Yrd Mat Min Machines Disabled 4 | . 4 . Max in Single Turn 3 | . 3 . Machines Repaired . | . . . Machines Dismantled . | . . . Machines Sabotaged . | . . . Overloaded Fab Kills . | . . . Hacking | -11 -10 -10 --------- Run | Yrd Mat Min Machines Accessed 3 | . 3 . Terminals 3 | . 3 . Fabricators . | . . . Repair Stations . | . . . Recycling Units . | . . . Scanalyzers . | . . . Garrison Access . | . . . Total Hacks 9 | . 9 . Successful 5 | . 5 . Failed 4 | . 4 . Catastrophic . | . . . Database Lockouts . | . . . Manual 8 | . 8 . Terminals 9 | . 9 . Fabricators . | . . . Repair Stations . | . . . Recycling Units . | . . . Scanalyzers . | . . . Garrison Access . | . . . Terminal Hacks 1 | . 1 . Robot Analysis 1 | . 1 . Fabricator Hacks . | . . . Repair Station Hacks . | . . . Recycling Unit Hacks . | . . . Scanalyzer . | . . . Garrison Access Hacks . | . . . Unauthorized Hacks 4 | . 4 . Terminals 4 | . 4 . Assimilate 2 | . 2 . Botnet 1 | . 1 . Operators 1 | . 1 . Fabricators . | . . . Repair Stations . | . . . Recycling Units . | . . . Scanalyzers . | . . . Garrison Access . | . . . Data Cores Recovered . | . . . Used . | . . . Hacking Detections 2 | . 2 . Full Trace Events . | . . . Feedback Events . | . . . Feedback Blocked . | . . . Robot Schematics Acquired . | . . . Robots Built . | . . . Authchips . | . . . Time . | . . . Total Robot Build Rating . | . . . Part Schematics Acquired . | . . . Parts Built . | . . . Authchips . | . . . Time . | . . . Total Part Build Rating . | . . . Parts Repaired . | . . . Time . | . . . Parts Recycled . | . . . Recycled Matter . | . . . Retrieved Matter . | . . . Retrieved Components . | . . . Parts Scanalyzed . | . . . Part Schematics Acquired . | . . . Parts Damaged . | . . . Bothacking | -11 -10 -10 ------------ Run | Yrd Mat Min Used RIF Installer . | . . . Robots Hacked . | . . . Non-combat . | . . . Combat . | . . . Robot Hacks Applied . | . . . Relay Couplers Released . | . . . Fabnet Peak Effective % . | . . . Robots Rewired . | . . . Allies Hacked . | . . . Hacks Repelled . | . . . Allies | -11 -10 -10 -------- Run | Yrd Mat Min Total Allies . | . . . Largest Group . | . . . Highest-Rated Group . | . . . Highest-Rated Ally . | . . . Total Orders . | . . . Ally Attacks . | . . . Total Damage . | . . . Kills . | . . . Allies Corrupted . | . . . Allies Melted . | . . . Intel | -11 -10 -10 ------- Run | Yrd Mat Min Robot Analysis Total 1 | . 1 . Derelict Logs Recovered 1 | . . 1 Drone Launches . | . . . Drone Recoveries . | . . . Exploration | -11 -10 -10 ------------- Run | Yrd Mat Min Turns Passed 2194 | 85 1470 639 Spaces Moved 985 | 52 689 244 Core 7 | 7 . . Treads 349 | 45 304 . Legs 629 | . 385 244 Wheels . | . . . Hover . | . . . Flight . | . . . Fastest Speed 50 | 50 120 190 Average Speed 174 | 145 170 190 Slowest Speed 190 | 160 190 190 Overloaded Moves . | . . . Propulsion Burnouts . | . . . Robots Hopped . | . . . Cave-ins Triggered . | . . . Exploration Rate (%) 44 | 6 86 42 Regions Visited 2 Branch Regions 1 Pre-discovered Areas . | . . . Known Exits Taken . | . . . Unknown Exits Taken 2 | 1 1 . Scrap Searched . | . . . Spaces Dug . | . . . Terrain Destroyed 67 | . 39 28 Melee . | . . . Projectile . | . . . AOE 67 | . 39 28 Terrain Rammed . | . . . Walls Destroyed . | . . . Machines Disabled . | . . . Actions | -11 -10 -10 --------- Run | Yrd Mat Min Total 1303 | 58 849 396 Wait 178 | . 43 135 Move 983 | 51 688 244 Hop . | . . . Pick Up 16 | . 16 . Fast Attach 9 | 6 3 . Attach 2 | . 1 1 Detach 1 | . 1 . Swap 20 | 1 17 2 Drop 11 | . 11 . Fire 82 | . 68 14 Melee . | . . . Ram . | . . . Kick . | . . . Crush 1 | . 1 . Escape Stasis . | . . . Rewire . | . . . Trap . | . . . Miscellaneous . | . . . Route ------- -11/Scrapyard -10/Materials (discovered 4 exits: [*Mat x3] / [*Min]) -10/Mines History --------- Turn | Location | Event 16 | -11/Scrapyard | Discovered new exit (range 15) 86 | -11/Scrapyard | Entered Materials 211 | -10/Materials | Discovered new exit (range 10) 302 | -10/Materials | Discovered new exit (range 14) 307 | -10/Materials | Build established: Mutant 696 | -10/Materials | Discovered new exit (range 10) 1528 | -10/Materials | Discovered new exit (range 16) 1556 | -10/Materials | Entered Mines 1569 | -10/Mines | Assembled infested the area 1574 | -10/Mines | Assisted by a Guerilla fighting off Assembled 1575 | -10/Mines | Learned 2 Materials zone layouts 1589 | -10/Mines | Core integrity fell below 50% 1741 | -10/Mines | Core integrity fell below 20% 1790 | -10/Mines | YI-UF0 nonchalantly dropped a Grenade Launcher on the ground 2195 | -10/Mines | Destroyed by D-53 Grenadier with Mini Grenade Launcher Last Messages --------------- 01596_ Destroyed Asb. Hover Unit. 01597_ The unstable cave ceiling collapses. 01598_ as-22663 destroyed. 01598_ Switching to secondary target: as-28497. 01601_ as-28497 destroyed. 01607_ The unstable cave ceiling collapses. 01675_ K-01 Serf collects debris. 01737_ S-10 Pest destroyed. 01744_ R-06 Scavenger collects Lgt. Assault Rifle. 01745_ Destroyed Lgt. Ion Engine. 01750_ S-10 Pest destroyed. 01756_ Acquired 41 matter. 01774_ YI-UF0 mumbles something. 01790_ YI-UF0 nonchalantly drops a Grenade Launcher on the ground. 01926_ YI-UF0 mumbles something. 01948_ The unstable cave ceiling collapses. 02059_ K-01 Serf collects debris. 02093_ U-05 Engineer lays Concrete. 02097_ U-05 Engineer builds a Wall. 02189_ Autogun destroyed. Map ----- +----------------------------------------------------+ | ????????????????????????????????# #???? | | ????????????????????????????????# #???? | | ????????????????????????????????# #???? | | ????????????????????????????????# #???? | | ????????????????????????????????# ##??? | | ?????????????????????????????#### ##?? | | ???????????????????????????### #% #?? | | ???????????????????????????# # #?? | | ??????????????????????????## % ##?? | | ??????????????????????????# #?? | | ??????????????????????????## #?? | | ???????????????????????????# # ####?? | | ???????????????????????????# ### #????? | | ???????????????????????????# #??##????? | | ???????????????????????????# #????????? | | ??????????????????????????## #????????? | | ?????????????????????????## #????????? | | ????????????????????????## #????????? | | ???????????????????????## ##????????? | | ??????????????????????## ##?????????? | | ??????????????????????# ##??????????? | | ?????????????????????## d ##??????????? | | ?????????????????????# ##?????????? | | ?????????????????????# #?????????? | | ?????????????????????# #?????????? | | ?????????????????????# @ ##????????? | | ?????????????????????# #????????? | | ????????????????????# ######???? | | ????????????????????## #???? | | ?????????????????????## # ##### #???? | | ??????????????????????### ##?# #???? | | ????????????????????#### ### #???? | | ??????????????????### ## ##??? | | #????????????????## #??? | | ############??#### #### #?? | | #??# ####??## #?? | | ## #### #######??????## #?? | | ####### ## #?????????????## #?? | | ??????# ## ######??????????????# #?? | | ??????# ## ####????????????????# #?? | | ??????# ## #?#########??????# #?? | | ?????## #### #?# #??????## #?? | | ##???# ### #?# """ #???????## ?? | | ##??# ## #?# """ #????????? #? | | #### #?# """ #?????????# ##? | | ## ## #?# #??????????###?? | | ] ### ### """ #??????????????? | | ###?#= = """ #??????????????? | | ##???##### """ #??????????????? | | ##????????# ??????????????? | +----------------------------------------------------+ Best States ------------- Heat Dissipation 25 Energy Generation 14 Energy Capacity 280 Matter Stores 300 Matter Capacity 300 Sight Range 16 Terrain Scan Density 10 Armor Coverage 150 Utility Shielding 33 Evasion (%) 55 Recoil Reduction 2 Item Schematics ----------------- None Robot Schematics ------------------ None Fabricated ------------ Nothing Alien Tech Used ----------------- None Achievements -------------- None Challenges ------------ None Game ------ Seed LongswordDiametricSuit Manual? 0 Play Time 00:15:18 Cumulative 86.1 hours Start 2024.09.16 @ 07:39:32 End 2024.09.16 @ 08:02:53 Sessions 1 Manual Loads 0 Difficulty Rogue Special Mode None Game No. 149 Rogue 149 Adventurer 0 Explorer 0 Win Type - Total 0 Types 0/0/0/0/0/0/0/0/0 Lore% 45 Gallery% 48 Achievement% 39 Wizard Run 0 Options --------- Layout 0 ASCII 0 Keyboard 1 Movement Numpad Keybinds 0 Fullscreen 2 Font 18/SmallcapsGlow Map View 76x50 Zoom Use 0% Tactical HUD 1 Map Filters NONE Filters NONE Steam 1 RUN: 0ed291f4-1d98-43a2-9233-54c7181c5423